fUST/lending_fUST_20241022
["ID","MTS","AMOUNT","RATE_DAILY","PERIOD"]
[340623466,1729547438687,-300.0,0.00016427,2]
[340623467,1729547438697,-276.50030485,0.00016427,2]
[340623468,1729547438707,-260.19949651,0.00016428,2]
[340623469,1729547438718,-7777.48294325,0.00016428,2]
[340623470,1729547438727,-155.688,0.00016428,2]
[340623471,1729547438737,-43982.97043037,0.00016428,2]
[340623472,1729547438853,-1972.63837135,0.00016428,2]
[340623686,1729547448372,70.59273721,0.00010959,2]
[340623687,1729547448396,109.90726279,0.00010959,2]
[340623688,1729547458961,135.09273721,0.00010959,2]
[340623689,1729547458983,15.32726279,0.00010959,2]
[340623690,1729547469621,169.39605753,0.00010959,2]
[340623691,1729547469660,582.71394247,0.00010959,2]
[340623701,1729548353127,-149.999999,0.0001401,4]
[340623702,1729548353149,-203.30780826,0.00014142,2]
[340623703,1729548356094,-1367.64026604,0.00014142,2]
[340623706,1729548433107,-173.13369271,0.00014047,2]
[340623708,1729548441091,-34.55844639,0.00014047,2]
[340623709,1729548441112,-377.61071806,0.00014142,2]
[340623710,1729548443095,-266.46274962,0.00014142,2]
[340623711,1729548450180,-172.0872886,0.00014142,2]
[340623712,1729548451109,-325.48776282,0.00014142,2]
[340623713,1729548451140,-250.0,0.00014916,2]
[340623714,1729548451169,-250.0,0.00014956,2]
[340623715,1729548451193,-250.0,0.00014997,2]
[340623716,1729548451227,-2402.79237034,0.0001502,2]
[340623730,1729548551103,-300.0,0.00014662,2]
[340623731,1729548551188,-300.0,0.00014662,2]
[340623732,1729548551216,-24900.0,0.00014663,2]
[340623733,1729548551238,-233.128365,0.00014685,2]
[340623734,1729548551259,-64.56701567,0.00014726,2]
[340623735,1729548551287,-168.56134933,0.00014726,2]
[340623736,1729548558208,-233.128365,0.00014766,2]
[340623737,1729548558231,-233.128365,0.00014806,2]
[340623738,1729548558253,-233.128365,0.00014847,2]
[340623739,1729548558274,-233.128365,0.00014887,2]
[340623740,1729548558295,-233.128365,0.00014927,2]
[340623741,1729548558327,-233.128365,0.00014967,2]
[340623742,1729548558349,-233.128365,0.00015008,2]
[340623785,1729548635487,-233.128365,0.00015048,2]
[340623787,1729548635498,-233.128365,0.00015088,2]
[340623788,1729548635508,-233.128365,0.00015128,2]
[340623789,1729548635520,-233.128365,0.00015169,2]
[340623790,1729548635531,-233.128365,0.00015209,2]
[340623791,1729548635541,-233.128365,0.00015249,2]
[340623792,1729548635551,-233.128365,0.0001529,2]
[340623793,1729548635561,-233.128365,0.0001533,2]
[340623794,1729548635571,-233.128365,0.0001537,2]
[340623795,1729548635581,-233.128365,0.0001541,2]
[340623796,1729548635592,-233.128365,0.00015451,2]
[340623797,1729548635602,-151.1654037,0.000157,2]
[340623798,1729548635612,-151.1654037,0.00015878,2]
[340623799,1729548635623,-308.0008254,0.00015878,2]
[340623800,1729548635634,-167.414092,0.0001589,2]
[340623801,1729548635645,-300.0,0.00015938,2]
[340623802,1729548635655,-300.0,0.00015938,2]
[340623803,1729548635667,-8890.20115101,0.00015988,2]
[340623804,1729548635678,-465.00120653,0.00016055,2]
[340623805,1729548635688,-2641.08949072,0.00016327,2]
[340623806,1729548635699,-155.688,0.0001639,2]
[340623807,1729548635710,-150.0,0.000164,2]
[340623808,1729548635720,-364.77106196,0.00016418,2]
[340623809,1729548635731,-9417.09134998,0.00016418,2]
[340623810,1729548635743,-14815.05279975,0.00016418,2]
[340623811,1729548635759,-1462.30795893,0.00016418,2]
[340623812,1729548635787,-354.3302,0.00016418,2]
[340623851,1729548638674,-3332.12554149,0.00016418,2]
[340623862,1729548640451,-40436.89018425,0.00016418,2]
[340623863,1729548640463,-7389.17085629,0.00016428,2]
[340623864,1729548640479,-59843.8268866,0.00016428,2]
[340623865,1729548640491,-500.0,0.00016437,2]
[340623866,1729548640503,-193.5502134,0.00016437,2]
[340623867,1729548640515,-500.0,0.00016438,2]
[340623868,1729548640528,-500.0,0.00016438,2]
[340623869,1729548640539,-500.0,0.00016438,2]
[340623870,1729548640550,-567.48,0.00016438,2]
[340623871,1729548640562,-500.0,0.00016438,2]
[340623872,1729548640574,-500.0,0.00016438,2]
[340623873,1729548640586,-500.0,0.00016438,2]
[340623874,1729548640598,-500.0,0.00016438,2]
[340623875,1729548640609,-500.0,0.00016438,2]
[340623876,1729548640620,-500.0,0.00016438,2]
[340623877,1729548640631,-650.9,0.00016438,2]
[340623878,1729548640642,-519.86,0.00016438,2]
[340623879,1729548640654,-500.0,0.00016438,2]
[340623880,1729548640665,-500.0,0.00016438,2]
[340623881,1729548640676,-500.0,0.00016438,2]
[340623882,1729548640687,-500.0,0.00016438,2]
[340623883,1729548640699,-500.0,0.00016438,2]
[340623884,1729548640710,-500.0,0.00016438,2]
[340623885,1729548640721,-500.0,0.00016438,2]
[340623886,1729548640732,-603.43,0.00016438,2]
[340623887,1729548640744,-500.0,0.00016438,2]
[340623888,1729548640755,-500.0,0.00016438,2]
[340623889,1729548640766,-599.25,0.00016438,2]
[340623890,1729548640777,-500.0,0.00016438,2]
[340623891,1729548640788,-500.0,0.00016438,2]
[340623892,1729548640799,-500.0,0.00016438,2]
[340623893,1729548640810,-500.0,0.00016438,2]
[340623894,1729548640821,-1013.9,0.00016438,2]
[340623895,1729548640831,-500.0,0.00016438,2]
[340623896,1729548640842,-500.0,0.00016438,2]
[340623897,1729548640852,-500.0,0.00016438,2]
[340623898,1729548640862,-500.0,0.00016438,2]
[340623899,1729548640872,-500.0,0.00016438,2]
[340623900,1729548640882,-500.0,0.00016438,2]
[340623901,1729548640892,-975.73,0.00016438,2]
[340623902,1729548640903,-500.0,0.00016438,2]
[340623903,1729548640914,-500.0,0.00016438,2]
[340623904,1729548640925,-500.0,0.00016438,2]
[340623905,1729548640936,-500.0,0.00016438,2]
[340623906,1729548640947,-500.0,0.00016438,2]
[340623907,1729548640957,-500.0,0.00016438,2]
[340623908,1729548640967,-500.0,0.00016438,2]
[340623909,1729548640978,-569.86,0.00016438,2]
[340623910,1729548640988,-500.0,0.00016438,2]
[340623911,1729548640999,-182.6837145,0.00016438,2]
[340623912,1729548641009,-500.0,0.00016438,2]
[340623913,1729548641019,-500.0,0.00016438,2]
[340623914,1729548641029,-500.0,0.00016438,2]
[340623915,1729548641043,-500.0,0.00016438,2]
[340623916,1729548641054,-500.0,0.00016438,2]
[340623917,1729548641065,-500.0,0.00016438,2]
[340623918,1729548641079,-500.0,0.00016438,2]
[340623919,1729548641090,-500.0,0.00016438,2]
[340623920,1729548641101,-500.0,0.00016438,2]
[340623921,1729548641111,-500.0,0.00016438,2]
[340623922,1729548641123,-500.0,0.00016438,2]
[340623923,1729548641135,-500.0,0.00016438,2]
[340623924,1729548641146,-500.0,0.00016438,2]
[340623925,1729548641156,-500.0,0.00016438,2]
[340623926,1729548641167,-500.0,0.00016438,2]
[340623927,1729548641178,-500.0,0.00016438,2]
[340623928,1729548641190,-500.0,0.00016438,2]
[340623929,1729548641201,-500.0,0.00016438,2]
[340623930,1729548641211,-500.0,0.00016438,2]
[340623931,1729548641222,-1001.36,0.00016438,2]
[340623932,1729548641233,-500.0,0.00016438,2]
[340623933,1729548641244,-500.0,0.00016438,2]
[340623934,1729548641256,-517.54,0.00016438,2]
[340623935,1729548641266,-500.0,0.00016438,2]
[340623936,1729548641276,-590.69,0.00016438,2]
[340623937,1729548641287,-500.0,0.00016438,2]
[340623938,1729548641297,-500.0,0.00016438,2]
[340623939,1729548641307,-531.5,0.00016438,2]
[340623940,1729548641318,-500.0,0.00016438,2]
[340623941,1729548641329,-500.0,0.00016438,2]
[340623942,1729548641340,-177.60524672,0.00016438,2]
[340623943,1729548641351,-500.0,0.00016438,2]
[340623944,1729548641362,-500.0,0.00016438,2]
[340623945,1729548641372,-500.0,0.00016438,2]
[340623946,1729548641383,-500.0,0.00016438,2]
[340623947,1729548641393,-500.0,0.00016438,2]
[340623948,1729548641404,-559.67,0.00016438,2]
[340623949,1729548641414,-500.0,0.00016438,2]
[340623950,1729548641425,-500.0,0.00016438,2]
[340623951,1729548641436,-500.0,0.00016438,2]
[340623952,1729548641447,-779.55,0.00016438,2]
[340623953,1729548641458,-500.0,0.00016438,2]
[340623954,1729548641468,-500.0,0.00016438,2]
[340623955,1729548641479,-500.0,0.00016438,2]
[340623956,1729548641489,-500.0,0.00016438,2]
[340623957,1729548641500,-511.99,0.00016438,2]
[340623958,1729548641511,-500.0,0.00016438,2]
[340623959,1729548641522,-518.14,0.00016438,2]
[340623960,1729548641533,-1407.56,0.00016438,2]
[340623961,1729548641544,-500.0,0.00016438,2]
[340623962,1729548641555,-500.0,0.00016438,2]
[340623963,1729548641566,-899.05,0.00016438,2]
[340623964,1729548641577,-500.0,0.00016438,2]
[340623965,1729548641589,-500.0,0.00016438,2]
[340623966,1729548641599,-1282.68,0.00016438,2]
[340623967,1729548641610,-500.0,0.00016438,2]
[340623968,1729548641620,-793.1,0.00016438,2]
[340623969,1729548641630,-500.0,0.00016438,2]
[340623970,1729548641641,-500.0,0.00016438,2]
[340623971,1729548641652,-1404.42,0.00016438,2]
[340623972,1729548641662,-665.02,0.00016438,2]
[340623973,1729548641673,-500.0,0.00016438,2]
[340623974,1729548641683,-313.22827824,0.00016438,2]
[340623993,1729548646433,-186.77172176,0.00016438,2]
[340623994,1729548646443,-135.22827824,0.00016438,2]
[340623998,1729548725978,204.72544722,0.0001,2]
[340623999,1729548725998,159.31597066,0.0001,2]
[340624000,1729548726018,395.03721916,0.0001,2]
[340624001,1729548726039,200.10100325,0.0001,2]
[340624002,1729548726082,2325.48333751,0.0001,2]
[340624021,1729549532149,-300.0,0.00014575,2]
[340624022,1729549532172,-300.0,0.00014575,2]
[340624023,1729549532194,-479.87963891,0.00014576,2]
[340624024,1729549555092,-444.90844354,0.00014576,2]
[340624025,1729549607190,-169.29422994,0.00014575,2]
[340624027,1729549643103,-3132.0,0.00014,2]
[340624028,1729549643126,-10.44199541,0.00014576,2]
[340624029,1729549644090,-703.26822434,0.00014576,2]
[340624030,1729549645103,-738.33010366,0.00014576,2]
[340624031,1729549647134,-166.51724291,0.00014576,2]
[340624032,1729549652105,-250.2935861,0.00014576,2]
[340624042,1729549747093,-300.0,0.00014575,2]
[340624043,1729549747115,-22106.36076513,0.00014576,2]
[340624044,1729549747138,-162.764658,0.00014685,2]
[340624045,1729549747162,-162.764658,0.00014733,2]
[340624046,1729549747185,-162.764658,0.00014781,2]
[340624047,1729549750195,-162.764658,0.00014829,2]
[340624048,1729549750218,-162.764658,0.00014877,2]
[340624049,1729549750241,-162.764658,0.00014925,2]
[340624050,1729549750264,-162.764658,0.00014972,2]
[340624051,1729549750287,-438.778761,0.00015,2]
[340624052,1729549750310,-162.764658,0.0001502,2]
[340624053,1729549750332,-152.0,0.0001504,2]
[340624056,1729549764748,162.764658,0.00014954,2]
[340624057,1729549811379,587.38,0.00010959,2]
[340624058,1729549820313,5685.253291,0.00014576,2]
[340624059,1729549820336,1535.82627845,0.00014576,2]
[340624060,1729549820357,4963.60192255,0.00014576,2]
[340624352,1729549840760,-162.764658,0.00015052,2]
[340624354,1729549840770,-162.764658,0.00015149,2]
[340624356,1729549840780,-162.764658,0.00015247,2]
[340624359,1729549840790,-162.764658,0.00015344,2]
[340624361,1729549840799,-162.764658,0.00015441,2]
[340624362,1729549840809,-162.764658,0.00015539,2]
[340624365,1729549840818,-162.764658,0.00015636,2]
[340624366,1729549840827,-162.764658,0.00015734,2]
[340624369,1729549840837,-162.112331,0.0001589,2]
[340624371,1729549840846,-382.0481079,0.0001589,2]
[340624373,1729549840855,-453.1916331,0.00015978,2]
[340624375,1729549840865,-150.0,0.00016013,2]
[340624377,1729549840874,-527.0,0.00016013,2]
[340624378,1729549840884,-414.9392584,0.00016151,2]
[340624380,1729549840893,-414.9392584,0.00016151,2]
[340624382,1729549840904,-414.9392584,0.00016151,2]
[340624384,1729549840914,-300.0,0.00016247,2]
[340624386,1729549840924,-8890.20115101,0.00016248,2]
[340624388,1729549840933,-2894.81931431,0.000163,2]
[340624390,1729549840943,-155.688,0.00016357,2]
[340624392,1729549840952,-150.0,0.000164,2]
[340624394,1729549840961,-292.519174,0.00016418,2]
[340624396,1729549840970,-28430.2472244,0.00016418,2]
[340624398,1729549840979,-27879.53205819,0.00016418,2]
[340624962,1729549846762,-2536.44468621,0.00016418,2]
[340624964,1729549846771,-500.0,0.00016427,2]
[340624966,1729549846780,-151.0,0.00016428,2]
[340624968,1729549846789,-151.0,0.00016428,2]
[340624970,1729549846798,-271.74736843,0.00016428,2]
[340624972,1729549846812,-151.0,0.00016428,2]
[340624974,1729549846822,-151.0,0.00016428,2]
[340624976,1729549846831,-151.0,0.00016428,2]
[340624978,1729549846840,-151.0,0.00016428,2]
[340624980,1729549846850,-151.0,0.00016428,2]
[340624982,1729549846860,-220.541767,0.00016428,2]
[340624984,1729549846869,-151.0,0.00016428,2]
[340624986,1729549846879,-151.0,0.00016428,2]
[340624988,1729549846888,-408.224041,0.00016428,2]
[340624990,1729549846897,-408.224041,0.00016428,2]
[340624992,1729549846907,-20307.319446,0.00016428,2]
[340624994,1729549846917,-17263.62178763,0.00016428,2]
[340625200,1729550735253,-300.0,0.00015361,2]
[340625201,1729550735277,-300.0,0.00015361,2]
[340625202,1729550735300,-1585.17609783,0.00015362,2]
[340625203,1729550752112,-2135.12205268,0.00015037,2]
[340625206,1729550829103,-864.87794732,0.00015037,2]
[340625207,1729550829124,-300.0,0.00015361,2]
[340625208,1729550829146,-300.0,0.00015361,2]
[340625209,1729550829167,-4896.49333253,0.00015362,2]
[340625210,1729550834129,-1046.65348833,0.00015362,2]
[340625211,1729550835104,-3615.78826346,0.00015362,2]
[340625212,1729550838130,-177.73391024,0.00015362,2]
[340625213,1729550846110,-980.89857432,0.00015362,2]
[340625214,1729550848110,-4380.33812776,0.00015362,2]
[340625215,1729550849281,-3280.92545463,0.00015362,2]
[340625216,1729550894358,419.64,0.00010959,2]
[340625219,1729551007986,169.4,0.00010959,2]
[340625295,1729551032304,-7752.2665858,0.00015018,2]
[340625297,1729551032315,-170.154577,0.00015302,2]
[340625299,1729551032324,-170.154577,0.0001539,2]
[340625301,1729551032335,-170.154577,0.00015479,2]
[340625303,1729551032346,-170.154577,0.00015568,2]
[340625305,1729551032357,-170.154577,0.00015656,2]
[340625307,1729551032367,-170.154577,0.00015745,2]
[340625309,1729551032376,-153.0,0.000158,2]
[340625311,1729551032387,-170.154577,0.00015833,2]
[340625313,1729551032399,-157.955559,0.0001589,2]
[340625315,1729551032410,-156.22930146,0.00015891,2]
[340625317,1729551032427,-300.0,0.00015904,2]
[340625319,1729551032440,-300.0,0.00015904,2]
[340625321,1729551032450,-170.154577,0.00015922,2]
[340625323,1729551032460,-8890.20115101,0.00015933,2]
[340625325,1729551032469,-153.0,0.00016122,2]
[340625327,1729551032479,-2842.63743555,0.00016328,2]
[340625329,1729551032488,-158.90604318,0.00016328,2]
[340625331,1729551032498,-1000.0,0.00016338,2]
[340625332,1729551032507,-150.0,0.000164,2]
[340625334,1729551032516,-155.688,0.000164,2]
[340625336,1729551032526,-150.0,0.000164,2]
[340625338,1729551032536,-374.50536436,0.00016418,2]
[340625340,1729551032545,-3662.91766528,0.00016418,2]
[340625342,1729551032555,-3922.31921646,0.00016418,2]
[340625345,1729551032566,-9157.2941632,0.00016418,2]
[340625347,1729551032575,-7727.46932494,0.00016418,2]
[340625556,1729551039822,-170.154577,0.00016011,2]
[340625558,1729551039832,-170.154577,0.00016099,2]
[340625560,1729551039841,-2078.32871621,0.00016418,2]
[340625562,1729551039851,-500.0,0.00016427,2]
[340625564,1729551039860,-151.0,0.00016428,2]
[340625566,1729551039870,-151.0,0.00016428,2]
[340625568,1729551039880,-151.0,0.00016428,2]
[340625570,1729551039890,-273.902347,0.00016428,2]
[340625572,1729551039899,-156.899661,0.00016428,2]
[340625574,1729551039909,-151.0,0.00016428,2]
[340625576,1729551039919,-151.0,0.00016428,2]
[340625578,1729551039930,-151.0,0.00016428,2]
[340625580,1729551039939,-151.0,0.00016428,2]
[340625582,1729551039949,-10988.7529958,0.00016428,2]
[340625585,1729551039960,-11766.9576494,0.00016428,2]
[340625587,1729551039970,-510.14531709,0.00016437,2]
[340625589,1729551039980,-59582.0819757,0.00016438,2]
[340625591,1729551039989,-9108.10697541,0.00016438,2]
[340625592,1729551039998,-742.33,0.00016438,2]
[340625594,1729551040009,-620.84,0.00016438,2]
[340625597,1729551040020,-580.13,0.00016438,2]
[340625599,1729551040029,-500.0,0.00016438,2]
[340625600,1729551040039,-855.45,0.00016438,2]
[340625603,1729551040049,-500.0,0.00016438,2]
[340625605,1729551040059,-500.0,0.00016438,2]
[340625607,1729551040069,-500.0,0.00016438,2]
[340625609,1729551040079,-500.0,0.00016438,2]
[340625611,1729551040090,-500.0,0.00016438,2]
[340625613,1729551040100,-500.0,0.00016438,2]
[340625614,1729551040109,-500.0,0.00016438,2]
[340625615,1729551040119,-500.0,0.00016438,2]
[340625616,1729551040130,-596.94192265,0.00016438,2]
[340625617,1729551040140,-530.43,0.00016438,2]
[340625618,1729551040150,-613.8545636,0.00016438,2]
[340625619,1729551040159,-500.0,0.00016438,2]
[340625620,1729551040169,-500.0,0.00016438,2]
[340625621,1729551040179,-151.0,0.00016438,2]
[340625622,1729551040189,-151.0,0.00016438,2]
[340625623,1729551040199,-500.0,0.00016438,2]
[340625624,1729551040211,-200.36854831,0.00016438,2]
[340625625,1729551040225,-500.0,0.00016438,2]
[340625626,1729551040234,-501.08876875,0.00016438,2]
[340625628,1729551040244,-500.0,0.00016438,2]
[340625629,1729551040253,-500.0,0.00016438,2]
[340625631,1729551040263,-500.0,0.00016438,2]
[340625633,1729551040272,-500.0,0.00016438,2]
[340625635,1729551040281,-500.792705,0.00016438,2]
[340625637,1729551040291,-500.0,0.00016438,2]
[340625639,1729551040300,-509.23124272,0.00016438,2]
[340625641,1729551040309,-82.35347253,0.00016438,2]
[340625701,1729551040867,-417.64652747,0.00016438,2]
[340625703,1729551040876,-230.6893008,0.00016438,2]
[340625715,1729551040984,-237.23578363,0.00016438,2]
[340625728,1729551041096,-32.07491557,0.00016438,2]
[340625730,1729551041106,-508.3833842,0.00016438,2]
[340625732,1729551041116,-166.36073132,0.00016438,2]
[340625737,1729551041156,-333.63926868,0.00016438,2]
[340625739,1729551041166,-313.11498282,0.00016438,2]
[340625741,1729551041179,-186.88501718,0.00016438,2]
[340625743,1729551041189,-566.57,0.00016438,2]
[340625746,1729551041199,-1047.58,0.00016438,2]
[340625748,1729551041209,-1319.53,0.00016438,2]
[340625750,1729551041220,-611.21,0.00016438,2]
[340625752,1729551041229,-756.69,0.00016438,2]
[340625754,1729551041239,-500.0,0.00016438,2]
[340625756,1729551041250,-500.0,0.00016438,2]
[340625758,1729551041260,-500.0,0.00016438,2]
[340625760,1729551041269,-528.5,0.00016438,2]
[340625762,1729551041279,-1000.0,0.00016438,2]
[340625764,1729551041289,-500.0,0.00016438,2]
[340625766,1729551041299,-509.61,0.00016438,2]
[340625768,1729551041309,-500.0,0.00016438,2]
[340625770,1729551041319,-500.0,0.00016438,2]
[340625772,1729551041329,-543.84,0.00016438,2]
[340625774,1729551041339,-500.0,0.00016438,2]
[340625776,1729551041349,-500.0,0.00016438,2]
[340625778,1729551041359,-623.78,0.00016438,2]
[340625780,1729551041369,-1345.9,0.00016438,2]
[340625782,1729551041378,-500.0,0.00016438,2]
[340625784,1729551041388,-4.10498282,0.00016438,2]
[340625867,1729551045885,-486.70423642,0.00016438,2]
[340625868,1729551045938,-9.19078076,0.00016438,2]
[340625869,1729551045948,-500.0,0.00016438,2]
[340625870,1729551045959,-40.0798123,0.00016438,2]
[340625871,1729551046000,-116.29483204,0.00016438,2]
[340625873,1729551573279,-376.986369,0.00014576,2]
[340625874,1729551796256,-1609.9606899,0.00014621,2]
[340625875,1729551941112,-219.2072344,0.00014791,2]
[340625876,1729551941134,-617.7965149,0.00015092,2]
[340625877,1729551941158,-300.0,0.00015327,2]
[340625878,1729551941189,-300.0,0.00015327,2]
[340625879,1729551941211,-3678.07364505,0.00015328,2]
[340625881,1729552034097,-300.0,0.00015327,2]
[340625882,1729552034120,-300.0,0.00015327,2]
[340625883,1729552034143,-1601.16617078,0.00015328,2]
[340625884,1729552149154,-150.0,0.00014,2]
[340625885,1729552150677,1639.92959964,0.00014627,2]
[340625886,1729552152131,-7237.0529411,0.00014627,2]
[340625887,1729552155182,-13902.39354972,0.00014627,2]
[340625888,1729552162093,-128.69826934,0.00014627,2]
[340625936,1729552232276,-188.493185,0.00015313,2]
[340625937,1729552232285,-1516.8295765,0.00015349,2]
[340625938,1729552232295,-163.069139,0.0001589,2]
[340625939,1729552232304,-300.0,0.00016238,2]
[340625940,1729552232314,-2095.77481679,0.00016287,2]
[340625958,1729552238486,-6073.61507976,0.00016287,2]
[340625990,1729552240106,-720.81125446,0.00016287,2]
[340625992,1729552240115,-414.9392584,0.00016301,2]
[340625994,1729552240125,-191.2297139,0.00016301,2]
[340625996,1729552240135,-1000.0,0.00016328,2]
[340625998,1729552240144,-226.04,0.000164,2]
[340626000,1729552240153,-2214.15133168,0.00016418,2]
[340626001,1729552240163,-1372.81172596,0.00016418,2]
[340626004,1729552240173,-5535.3783292,0.00016418,2]
[340626005,1729552240183,-3432.0293149,0.00016418,2]
[340626007,1729552240192,-155.68876038,0.00016428,2]
[340626009,1729552240201,-151.0,0.00016428,2]
[340626011,1729552240210,-151.0,0.00016428,2]
[340626013,1729552240220,-151.0,0.00016428,2]
[340626016,1729552240230,-151.0,0.00016428,2]
[340626018,1729552240239,-201.241556,0.00016428,2]
[340626020,1729552240249,-151.0,0.00016428,2]
[340626022,1729552240258,-151.0,0.00016428,2]
[340626024,1729552240268,-151.0,0.00016428,2]
[340626026,1729552240277,-6642.45399504,0.00016428,2]
[340626028,1729552240287,-4118.43517788,0.00016428,2]
[340626030,1729552240296,-432.31080193,0.00016428,2]
[340626032,1729552240306,-425.12109758,0.00016437,2]
[340626034,1729552240315,-500.0,0.00016437,2]
[340626036,1729552240325,-44686.56148178,0.00016438,2]
[340626038,1729552240334,-4554.05348771,0.00016438,2]
[340626040,1729552240344,-500.0,0.00016438,2]
[340626042,1729552240353,-500.0,0.00016438,2]
[340626044,1729552240364,-597.79,0.00016438,2]
[340626046,1729552240373,-500.0,0.00016438,2]
[340626048,1729552240382,-374.10612471,0.00016438,2]
[340626050,1729552240392,-357.23543919,0.00016438,2]
[340626052,1729552240405,-142.76456081,0.00016438,2]
[340626054,1729552240414,-500.0,0.00016438,2]
[340626056,1729552240424,-500.0,0.00016438,2]
[340626058,1729552240434,-574.28,0.00016438,2]
[340626060,1729552240444,-578.28,0.00016438,2]
[340626062,1729552240454,-175.94568015,0.00016438,2]
[340626064,1729552240466,-971.65,0.00016438,2]
[340626066,1729552240475,-180.11289741,0.00016438,2]
[340626155,1729552243137,-319.88710259,0.00016438,2]
[340626157,1729552243147,-333.39075526,0.00016438,2]
[340626161,1729552243172,-601.68924474,0.00016438,2]
[340626163,1729552243182,-500.0,0.00016438,2]
[340626165,1729552243191,-500.0,0.00016438,2]
[340626167,1729552243201,-318.89790614,0.00016438,2]
[340626178,1729552243290,-181.10209386,0.00016438,2]
[340626180,1729552243300,-387.23983885,0.00016438,2]
[340626224,1729552245986,-112.76016115,0.00016438,2]
[340626225,1729552245996,-298.35163804,0.00016438,2]
[340626226,1729552246008,-247.76836196,0.00016438,2]
[340626227,1729552246018,-53.01884804,0.00016438,2]
[340626228,1729552246029,-446.98115196,0.00016438,2]
[340626229,1729552246039,-500.0,0.00016438,2]
[340626230,1729552246048,-500.0,0.00016438,2]
[340626231,1729552246058,-500.0,0.00016438,2]
[340626232,1729552246068,-959.64,0.00016438,2]
[340626233,1729552246077,-500.0,0.00016438,2]
[340626234,1729552246087,-354.82204398,0.00016438,2]
[340626235,1729552246096,-59.97111402,0.00016438,2]
[340626236,1729552246108,-440.02888598,0.00016438,2]
[340626237,1729552246118,-500.0,0.00016438,2]
[340626238,1729552246128,-233.62876252,0.00016438,2]
[340626239,1729552246140,-405.47123748,0.00016438,2]
[340626240,1729552246150,-143.0628294,0.00016438,2]
[340626241,1729552246162,-366.2871706,0.00016438,2]
[340626242,1729552246172,-247.3013294,0.00016438,2]
[340626243,1729552246183,-252.6986706,0.00016438,2]
[340626244,1729552246198,-536.35,0.00016438,2]
[340626245,1729552246208,-566.08,0.00016438,2]
[340626246,1729552246218,-756.54,0.00016438,2]
[340626247,1729552246228,-500.0,0.00016438,2]
[340626248,1729552246239,-747.07,0.00016438,2]
[340626249,1729552246249,-500.0,0.00016438,2]
[340626250,1729552246258,-500.0,0.00016438,2]
[340626251,1729552246268,-500.0,0.00016438,2]
[340626252,1729552246278,-500.0,0.00016438,2]
[340626253,1729552246288,-500.0,0.00016438,2]
[340626254,1729552246298,-500.0,0.00016438,2]
[340626255,1729552246308,-27.34788648,0.00016438,2]
[340626256,1729552253776,466.45,0.00010959,2]
[340626257,1729552264384,388.7,0.00010959,2]
[340626258,1729552274923,323.92,0.00010959,2]
[340626259,1729552285472,269.93,0.00010959,2]
[340626260,1729552296246,224.95,0.00010959,2]
[340626261,1729552306923,187.45,0.00010959,2]
[340626262,1729552317506,156.21,0.00010959,2]
[340626263,1729552328069,781.09,0.00010959,2]
[340626265,1729552880101,156.35,0.00011,2]
[340626273,1729553197142,-169.29422994,0.00014374,2]
[340626274,1729553228099,-269.25580826,0.00014374,2]
[340626275,1729553228120,-188.493185,0.00014406,2]
[340626276,1729553228141,-99.02404117,0.00014575,2]
[340626277,1729553235084,-200.97595883,0.00014575,2]
[340626278,1729553235106,-300.0,0.00014575,2]
[340626279,1729553235128,-3361.00627964,0.00014576,2]